fUSD/lending_fUSD_20260601
["ID","MTS","AMOUNT","RATE_DAILY","PERIOD"]
[423630797,1780265455000,-1337.61,0.00038356,2]
[423630793,1780265455000,-1337.61,0.00038356,2]
[423630789,1780265455000,-1337.61,0.00038356,2]
[423630795,1780265455000,-1337.61,0.00038356,2]
[423630794,1780265455000,-1337.61,0.00038356,2]
[423630791,1780265455000,-1337.61,0.00038356,2]
[423630792,1780265455000,-1337.61,0.00038356,2]
[423630798,1780265455000,-1337.61,0.00038356,2]
[423630808,1780265455000,-1337.61,0.00038356,2]
[423630809,1780265455000,-1337.74342065,0.00038356,2]
[423630800,1780265455000,-1337.61,0.00038356,2]
[423630799,1780265455000,-1337.61,0.00038356,2]
[423630804,1780265455000,-1337.61,0.00038356,2]
[423630782,1780265455000,-2280.95,0.00038356,2]
[423630796,1780265455000,-1337.61,0.00038356,2]
[423630783,1780265455000,-2280.95,0.00038356,2]
[423630749,1780265455000,-500.0,0.00038356,2]
[423630781,1780265455000,-2280.95,0.00038356,2]
[423630805,1780265455000,-1337.61,0.00038356,2]
[423630747,1780265455000,-336.03712649,0.00038356,2]
[423630745,1780265455000,-500.0,0.00038356,2]
[423630743,1780265455000,-500.0,0.00038356,2]
[423630748,1780265455000,-500.0,0.00038356,2]
[423630746,1780265455000,-500.0,0.00038356,2]
[423630744,1780265455000,-500.0,0.00038356,2]
[423630750,1780265455000,-500.0,0.00038356,2]
[423630752,1780265455000,-500.0,0.00038356,2]
[423630753,1780265455000,-500.0,0.00038356,2]
[423630760,1780265455000,-314.50421768,0.00038356,2]
[423630754,1780265455000,-500.0,0.00038356,2]
[423630756,1780265455000,-500.0,0.00038356,2]
[423630784,1780265455000,-2280.95,0.00038356,2]
[423630757,1780265455000,-500.0,0.00038356,2]
[423630755,1780265455000,-500.0,0.00038356,2]
[423630758,1780265455000,-500.0,0.00038356,2]
[423630763,1780265455000,-2280.95,0.00038356,2]
[423630764,1780265455000,-2280.95,0.00038356,2]
[423630769,1780265455000,-2280.95,0.00038356,2]
[423630762,1780265455000,-2280.95,0.00038356,2]
[423630761,1780265455000,-595.48952811,0.00038356,2]
[423630765,1780265455000,-2280.95,0.00038356,2]
[423630766,1780265455000,-2280.95,0.00038356,2]
[423630768,1780265455000,-2280.95,0.00038356,2]
[423630767,1780265455000,-2280.95,0.00038356,2]
[423630771,1780265455000,-2280.95,0.00038356,2]
[423630770,1780265455000,-2280.95,0.00038356,2]
[423630759,1780265455000,-500.0,0.00038356,2]
[423630802,1780265455000,-1337.61,0.00038356,2]
[423630751,1780265455000,-500.0,0.00038356,2]
[423630801,1780265455000,-1337.61,0.00038356,2]
[423630839,1780265455000,-300.0,0.00038356,2]
[423630841,1780265455000,-300.0,0.00038356,2]
[423630850,1780265455000,-300.0,0.00038356,2]
[423630849,1780265455000,-300.0,0.00038356,2]
[423630848,1780265455000,-300.0,0.00038356,2]
[423630844,1780265455000,-300.0,0.00038356,2]
[423630846,1780265455000,-300.0,0.00038356,2]
[423630843,1780265455000,-300.0,0.00038356,2]
[423630847,1780265455000,-300.0,0.00038356,2]
[423630845,1780265455000,-300.0,0.00038356,2]
[423630852,1780265455000,-170.45011995,0.00038356,2]
[423630862,1780265455000,-1125.0,0.00038356,120]
[423630863,1780265455000,-1125.0,0.00038356,120]
[423630838,1780265455000,-300.0,0.00038356,2]
[423630851,1780265455000,-300.0,0.00038356,2]
[423630864,1780265455000,-1125.0,0.00038356,120]
[423630854,1780265455000,-1125.0,0.00038356,120]
[423630861,1780265455000,-1125.0,0.00038356,120]
[423630855,1780265455000,-1125.0,0.00038356,120]
[423630866,1780265455000,-1125.0,0.00038356,120]
[423630858,1780265455000,-1125.0,0.00038356,120]
[423630859,1780265455000,-1125.0,0.00038356,120]
[423630857,1780265455000,-1125.0,0.00038356,120]
[423630860,1780265455000,-1125.0,0.00038356,120]
[423630856,1780265455000,-1125.0,0.00038356,120]
[423630865,1780265455000,-1125.0,0.00038356,120]
[423630868,1780265455000,-1125.0,0.00038356,120]
[423630807,1780265455000,-1337.61,0.00038356,2]
[423630853,1780265455000,-1125.0,0.00038356,120]
[423630840,1780265455000,-300.0,0.00038356,2]
[423630867,1780265455000,-1125.0,0.00038356,120]
[423630837,1780265455000,-295.6860452,0.00038356,2]
[423630803,1780265455000,-1337.61,0.00038356,2]
[423630806,1780265455000,-1337.61,0.00038356,2]
[423630811,1780265455000,-500.0,0.00038356,2]
[423630815,1780265455000,-500.0,0.00038356,2]
[423630822,1780265455000,-500.0,0.00038356,2]
[423630810,1780265455000,-500.0,0.00038356,2]
[423630817,1780265455000,-500.0,0.00038356,2]
[423630821,1780265455000,-500.0,0.00038356,2]
[423630842,1780265455000,-300.0,0.00038356,2]
[423630812,1780265455000,-500.0,0.00038356,2]
[423630813,1780265455000,-500.0,0.00038356,2]
[423630819,1780265455000,-500.0,0.00038356,2]
[423630820,1780265455000,-500.0,0.00038356,2]
[423630816,1780265455000,-500.0,0.00038356,2]
[423630823,1780265455000,-500.0,0.00038356,2]
[423630814,1780265455000,-500.0,0.00038356,2]
[423630834,1780265455000,-500.0,0.00038356,2]
[423630818,1780265455000,-500.0,0.00038356,2]
[423630831,1780265455000,-500.0,0.00038356,2]
[423630830,1780265455000,-25000.0,0.00038356,10]
[423630832,1780265455000,-500.0,0.00038356,2]
[423630829,1780265455000,-502.0,0.00038356,2]
[423630833,1780265455000,-500.0,0.00038356,2]
[423630836,1780265455000,-500.0,0.00038356,2]
[423630824,1780265455000,-500.0,0.00038356,2]
[423630826,1780265455000,-500.0,0.00038356,2]
[423630827,1780265455000,-500.0,0.00038356,2]
[423630828,1780265455000,-500.0,0.00038356,2]
[423630825,1780265455000,-500.0,0.00038356,2]
[423630835,1780265455000,-500.0,0.00038356,2]
[423630913,1780265456000,-1535.407751,0.00038356,30]
[423630909,1780265456000,-151.0,0.00038356,30]
[423630905,1780265456000,-1247.367113,0.00038356,30]
[423630906,1780265456000,-1247.367113,0.00038356,30]
[423630914,1780265456000,-151.0,0.00038356,30]
[423630897,1780265456000,-151.0,0.00038356,30]
[423630903,1780265456000,-1247.367113,0.00038356,30]
[423630912,1780265456000,-1535.407751,0.00038356,30]
[423630911,1780265456000,-1535.407751,0.00038356,30]
[423630904,1780265456000,-1247.367113,0.00038356,30]
[423630915,1780265456000,-271.774638,0.00038356,30]
[423630907,1780265456000,-151.0,0.00038356,30]
[423630917,1780265456000,-151.0,0.00038356,30]
[423630910,1780265456000,-1535.407751,0.00038356,30]
[423630916,1780265456000,-180.731759,0.00038356,30]
[423630918,1780265456000,-151.0,0.00038356,30]
[423630923,1780265456000,-247.419413,0.00038356,30]
[423630928,1780265456000,-151.0,0.00038356,30]
[423630922,1780265456000,-1252.286774,0.00038356,30]
[423630927,1780265456000,-247.419413,0.00038356,30]
[423630920,1780265456000,-1252.286774,0.00038356,30]
[423630919,1780265456000,-151.0,0.00038356,30]
[423630925,1780265456000,-247.419413,0.00038356,30]
[423630921,1780265456000,-247.419413,0.00038356,30]
[423630924,1780265456000,-1252.286774,0.00038356,30]
[423630926,1780265456000,-1252.286774,0.00038356,30]
[423630901,1780265456000,-205.372533,0.00038356,30]
[423630908,1780265456000,-237.927293,0.00038356,30]
[423630902,1780265456000,-215.309514,0.00038356,30]
[423630883,1780265456000,-944.988119,0.00038356,30]
[423630900,1780265456000,-205.372533,0.00038356,30]
[423630929,1780265456000,-151.0,0.00038356,30]
[423630875,1780265456000,-1125.0,0.00038356,120]
[423630871,1780265456000,-1125.0,0.00038356,120]
[423630869,1780265456000,-1125.0,0.00038356,120]
[423630870,1780265456000,-1125.0,0.00038356,120]
[423630874,1780265456000,-1125.0,0.00038356,120]
[423630876,1780265456000,-1134.34661754,0.00038356,120]
[423630873,1780265456000,-1125.0,0.00038356,120]
[423630872,1780265456000,-1125.0,0.00038356,120]
[423630878,1780265456000,-151.0,0.00038356,30]
[423630889,1780265456000,-246.154592,0.00038356,30]
[423630888,1780265456000,-151.0,0.00038356,30]
[423630879,1780265456000,-236.4797,0.00038356,30]
[423630899,1780265456000,-151.0,0.00038356,30]
[423630877,1780265456000,-151.0,0.00038356,30]
[423630885,1780265456000,-944.988119,0.00038356,30]
[423630886,1780265456000,-198.455501,0.00038356,30]
[423630882,1780265456000,-944.988119,0.00038356,30]
[423630887,1780265456000,-151.0,0.00038356,30]
[423630881,1780265456000,-206.6698,0.00038356,30]
[423630884,1780265456000,-944.988119,0.00038356,30]
[423630890,1780265456000,-151.0,0.00038356,30]
[423630891,1780265456000,-151.0,0.00038356,30]
[423630892,1780265456000,-151.0,0.00038356,30]
[423630895,1780265456000,-205.372533,0.00038356,30]
[423630894,1780265456000,-151.0,0.00038356,30]
[423630896,1780265456000,-164.367627,0.00038356,30]
[423630898,1780265456000,-205.372533,0.00038356,30]
[423630880,1780265456000,-245.517686,0.00038356,30]
[423630932,1780265456000,-151.0,0.00038356,30]
[423630893,1780265456000,-218.973196,0.00038356,30]
[423630933,1780265456000,-163.523785,0.00038356,30]
[423630963,1780265456000,-219.698004,0.00038356,30]
[423630975,1780265456000,-151.0,0.00038356,30]
[423630976,1780265456000,-166.80716,0.00038356,30]
[423630970,1780265456000,-163.440292,0.00038356,30]
[423630971,1780265456000,-151.0,0.00038356,30]
[423630972,1780265456000,-163.440292,0.00038356,30]
[423630974,1780265456000,-163.440292,0.00038356,30]
[423630973,1780265456000,-151.0,0.00038356,30]
[423630967,1780265456000,-170.031944,0.00038356,30]
[423630977,1780265456000,-151.0,0.00038356,30]
[423630968,1780265456000,-163.440292,0.00038356,30]
[423630966,1780265456000,-219.698004,0.00038356,30]
[423630969,1780265456000,-151.0,0.00038356,30]
[423630962,1780265456000,-151.0,0.00038356,30]
[423630978,1780265456000,-212.801236,0.00038356,30]
[423630980,1780265456000,-212.801236,0.00038356,30]
[423630985,1780265456000,-151.0,0.00038356,30]
[423630986,1780265456000,-174.303912,0.00038356,30]
[423630984,1780265456000,-212.801236,0.00038356,30]
[423630990,1780265456000,-151.0,0.00038356,30]
[423630987,1780265456000,-151.0,0.00038356,30]
[423630983,1780265456000,-174.303912,0.00038356,30]
[423630989,1780265456000,-266.388263,0.00038356,30]
[423630988,1780265456000,-151.0,0.00038356,30]
[423630981,1780265456000,-174.303912,0.00038356,30]
[423630992,1780265456000,-151.0,0.00038356,30]
[423630991,1780265456000,-151.0,0.00038356,30]
[423630930,1780265456000,-151.0,0.00038356,30]
[423630979,1780265456000,-174.303912,0.00038356,30]
[423630961,1780265456000,-151.0,0.00038356,30]
[423630982,1780265456000,-212.801236,0.00038356,30]
[423630955,1780265456000,-151.0,0.00038356,30]
[423630965,1780265456000,-151.0,0.00038356,30]
[423630935,1780265456000,-151.0,0.00038356,30]
[423630940,1780265456000,-893.413252,0.00038356,30]
[423630937,1780265456000,-151.0,0.00038356,30]
[423630941,1780265456000,-229.360341,0.00038356,30]
[423630936,1780265456000,-151.0,0.00038356,30]
[423630942,1780265456000,-893.413252,0.00038356,30]
[423630938,1780265456000,-893.413252,0.00038356,30]
[423630939,1780265456000,-151.0,0.00038356,30]
[423630934,1780265456000,-151.0,0.00038356,30]
[423630944,1780265456000,-1206.406698,0.00038356,30]
[423630943,1780265456000,-893.413252,0.00038356,30]
[423630952,1780265456000,-285.812052,0.00038356,30]
[423630945,1780265456000,-1206.406698,0.00038356,30]
[423630931,1780265456000,-151.0,0.00038356,30]
[423630953,1780265456000,-285.812052,0.00038356,30]
[423630958,1780265456000,-151.0,0.00038356,30]
[423630948,1780265456000,-151.0,0.00038356,7]
[423630957,1780265456000,-151.0,0.00038356,30]
[423630960,1780265456000,-219.698004,0.00038356,30]
[423630959,1780265456000,-151.0,0.00038356,30]
[423630956,1780265456000,-151.0,0.00038356,30]
[423630964,1780265456000,-219.698004,0.00038356,30]
[423630949,1780265456000,-151.0,0.00038356,30]
[423630946,1780265456000,-1206.406698,0.00038356,30]
[423630950,1780265456000,-151.0,0.00038356,30]
[423630951,1780265456000,-285.812052,0.00038356,30]
[423630947,1780265456000,-1206.406698,0.00038356,30]
[423630954,1780265456000,-285.812052,0.00038356,30]
[423631027,1780265457000,-151.0,0.00038356,30]
[423631026,1780265457000,-151.0,0.00038356,30]
[423631024,1780265457000,-151.0,0.00038356,30]
[423631021,1780265457000,-151.0,0.00038356,30]
[423631018,1780265457000,-151.0,0.00038356,30]
[423631020,1780265457000,-755.902323,0.00038356,30]
[423631028,1780265457000,-2000.0,0.00038379,105]
[423631029,1780265457000,-375.05,0.0003838,105]
[423631025,1780265457000,-151.0,0.00038356,30]
[423631022,1780265457000,-151.0,0.00038356,30]
[423631036,1780265457000,-4844.9956311,0.00038417,2]
[423631041,1780265457000,-2420.64172225,0.00038422,10]
[423631031,1780265457000,-536.46,0.000384,120]
[423631030,1780265457000,-315.30150846,0.00038396,2]
[423631038,1780265457000,-2849.85177406,0.0003842,30]
[423631033,1780265457000,-305.12,0.000384,120]
[423631032,1780265457000,-221.0,0.000384,120]
[423631042,1780265457000,-2420.64172213,0.00038422,10]
[423631035,1780265457000,-257315.8384242,0.00038417,2]
[423631019,1780265457000,-151.0,0.00038356,30]
[423631034,1780265457000,-111634.7491497,0.00038417,2]
[423631023,1780265457000,-151.0,0.00038356,30]
[423631015,1780265457000,-755.902323,0.00038356,30]
[423630999,1780265457000,-3051.214858,0.00038356,30]
[423631007,1780265457000,-328.38579,0.00038356,30]
[423631037,1780265457000,-150.0,0.0003842,30]
[423630994,1780265457000,-151.0,0.00038356,30]
[423630993,1780265457000,-151.0,0.00038356,30]
[423630996,1780265457000,-158.385825,0.00038356,30]
[423631004,1780265457000,-3051.214858,0.00038356,30]
[423630995,1780265457000,-208.33154,0.00038356,30]
[423630997,1780265457000,-3051.214858,0.00038356,30]
[423631002,1780265457000,-182.845547,0.00038356,30]
[423630998,1780265457000,-208.33154,0.00038356,30]
[423631001,1780265457000,-3051.214858,0.00038356,30]
[423631014,1780265457000,-328.38579,0.00038356,30]
[423631000,1780265457000,-208.33154,0.00038356,30]
[423631017,1780265457000,-755.902323,0.00038356,30]
[423631016,1780265457000,-151.0,0.00038356,30]
[423631006,1780265457000,-195.123168,0.00038356,30]
[423631008,1780265457000,-151.0,0.00038356,30]
[423631005,1780265457000,-183.03325,0.00038356,30]
[423631010,1780265457000,-151.0,0.00038356,30]
[423631009,1780265457000,-328.38579,0.00038356,30]
[423631013,1780265457000,-151.0,0.00038356,30]
[423631012,1780265457000,-755.902323,0.00038356,30]
[423631011,1780265457000,-328.38579,0.00038356,30]
[423631003,1780265457000,-208.33154,0.00038356,30]
[423631039,1780265457000,-150.0,0.0003842,30]
[423631053,1780265457000,-2420.64172213,0.00038422,10]
[423631050,1780265457000,-2420.64172213,0.00038422,10]
[423631075,1780265457000,-500.0,0.00038548,7]
[423631071,1780265457000,-1070.34499689,0.00038544,20]
[423631072,1780265457000,-500.0,0.00038548,7]
[423631078,1780265457000,-5000.0,0.00038566,2]
[423631073,1780265457000,-500.0,0.00038548,7]
[423631070,1780265457000,-1066.16219114,0.00038544,20]
[423631076,1780265457000,-518.8,0.00038548,7]
[423631077,1780265457000,-170.93883144,0.00038552,2]
[423631091,1780265457000,-170.93883144,0.00038652,2]
[423631079,1780265457000,-5000.0,0.00038566,2]
[423631068,1780265457000,-1147.96471979,0.00038544,20]
[423631082,1780265457000,-250.0,0.00038566,2]
[423631080,1780265457000,-5000.0,0.00038566,2]
[423631090,1780265457000,-2110.9,0.00038652,7]
[423631083,1780265457000,-250.0,0.00038566,2]
[423631085,1780265457000,-250.0,0.00038566,2]
[423631040,1780265457000,-1703.87007754,0.0003842,30]
[423631086,1780265457000,-151.0,0.000386,120]
[423631084,1780265457000,-250.0,0.00038566,2]
[423631088,1780265457000,-1590.46,0.00038609,7]
[423631087,1780265457000,-157.99575143,0.00038601,2]
[423631092,1780265457000,-292.94,0.00038682,30]
[423631081,1780265457000,-5000.0,0.00038566,2]
[423631074,1780265457000,-500.0,0.00038548,7]
[423631089,1780265457000,-2350.0309,0.0003864,30]
[423631067,1780265457000,-1040.90652134,0.00038544,20]
[423631069,1780265457000,-1065.43144149,0.00038544,20]
[423631049,1780265457000,-2420.64172213,0.00038422,10]
[423631043,1780265457000,-2420.64172213,0.00038422,10]
[423631046,1780265457000,-2420.64172213,0.00038422,10]
[423631047,1780265457000,-2420.64172213,0.00038422,10]
[423631045,1780265457000,-2420.64172213,0.00038422,10]
[423631044,1780265457000,-2420.64172213,0.00038422,10]
[423631051,1780265457000,-2420.64172213,0.00038422,10]
[423631052,1780265457000,-2420.64172213,0.00038422,10]
[423631054,1780265457000,-2319.0,0.00038423,11]
[423631055,1780265457000,-163.0,0.00038431,11]
[423631048,1780265457000,-2420.64172213,0.00038422,10]
[423631056,1780265457000,-170.93883144,0.00038452,2]
[423631057,1780265457000,-698.54978571,0.00038476,2]
[423631063,1780265457000,-500.0,0.0003854,30]
[423631065,1780265457000,-1118.72442359,0.00038544,20]
[423631064,1780265457000,-1035.93878867,0.00038544,20]
[423631066,1780265457000,-1065.28604439,0.00038544,20]
[423631061,1780265457000,-3726.58,0.00038514,2]
[423631060,1780265457000,-2319.0,0.00038513,11]
[423631058,1780265457000,-171.71,0.00038493,30]
[423631059,1780265457000,-902.7,0.000385,30]
[423631062,1780265457000,-1057.32,0.00038514,7]
[423631111,1780265458000,-298.826273,0.000388,2]
[423631117,1780265458000,-553.54616305,0.00038849,120]
[423631108,1780265458000,-304.826273,0.000388,2]
[423631107,1780265458000,-969.88405427,0.00038795,7]
[423631115,1780265458000,-297.0,0.000388,3]
[423631109,1780265458000,-313.826274,0.000388,2]
[423631119,1780265458000,-5000.0,0.00038851,14]
[423631122,1780265458000,-1000.0,0.00038857,90]
[423631125,1780265458000,-157.99575143,0.00038875,2]
[423631123,1780265458000,-5000.0,0.00038861,14]
[423631129,1780265458000,-322.28,0.00038894,7]
[423631127,1780265458000,-500.0,0.00038894,7]
[423631120,1780265458000,-170.93883144,0.00038852,2]
[423631131,1780265458000,-391.919495,0.000389,2]
[423631124,1780265458000,-5000.0,0.00038871,14]
[423631112,1780265458000,-304.826273,0.000388,2]
[423631121,1780265458000,-1000.0,0.00038854,120]
[423631114,1780265458000,-34745.0,0.000388,30]
[423631100,1780265458000,-1590.0,0.00038751,11]
[423631113,1780265458000,-221.0,0.000388,120]
[423631126,1780265458000,-627.0,0.00038884,14]
[423631093,1780265458000,-698.54978571,0.00038686,2]
[423631095,1780265458000,-989.20309683,0.00038713,120]
[423631096,1780265458000,-1200.0,0.00038726,60]
[423631094,1780265458000,-1184.8224,0.000387,120]
[423631102,1780265458000,-46283.59419265,0.00038752,6]
[423631101,1780265458000,-2000.0,0.00038751,6]
[423631110,1780265458000,-301.826273,0.000388,2]
[423631104,1780265458000,-1000.0,0.00038767,90]
[423631099,1780265458000,-500.0,0.00038751,7]
[423631098,1780265458000,-2319.0,0.00038743,11]
[423631097,1780265458000,-390.56574748,0.0003874,30]
[423631116,1780265458000,-3827.4680284,0.00038841,14]
[423631106,1780265458000,-2319.0,0.00038792,11]
[423631118,1780265458000,-452.90140614,0.00038849,120]
[423631105,1780265458000,-350.0,0.00038767,5]
[423631103,1780265458000,-170.93883144,0.00038752,2]
[423631130,1780265458000,-698.54978571,0.00038895,2]
[423631163,1780265458000,-901.38975522,0.00039019,56]
[423631141,1780265458000,-375.05,0.0003892,116]
[423631146,1780265458000,-250.0,0.00038964,2]
[423631148,1780265458000,-250.0,0.00038964,2]
[423631149,1780265458000,-1250.0,0.00038983,2]
[423631157,1780265458000,-2074.83975922,0.00039001,2]
[423631156,1780265458000,-1384.25626573,0.00039001,2]
[423631159,1780265458000,-2341.37646919,0.00039001,2]
[423631162,1780265458000,-1425.33417843,0.00039007,2]
[423631147,1780265458000,-250.0,0.00038964,2]
[423631161,1780265458000,-1422.52173165,0.00039001,2]
[423631160,1780265458000,-2529.8058123,0.00039001,2]
[423631167,1780265458000,-500.0,0.00012909,2]
[423631165,1780265458000,-500.0,0.00012361,2]
[423631164,1780265458000,-830.37862532,8.401e-05,2]
[423631169,1780265458000,-16.39063511,0.00016603,2]
[423631168,1780265458000,-500.0,0.00013183,2]
[423631166,1780265458000,-500.0,0.00012635,2]
[423631158,1780265458000,-1448.16551452,0.00039001,2]
[423631150,1780265458000,-2319.0,0.00038991,11]
[423631128,1780265458000,-500.0,0.00038894,7]
[423631152,1780265458000,-555.0,0.00039,10]
[423631155,1780265458000,-1501.96332813,0.00039001,2]
[423631142,1780265458000,-888.0,0.00038949,5]
[423631132,1780265458000,-325.535598,0.000389,2]
[423631143,1780265458000,-5000.0,0.00038964,2]
[423631134,1780265458000,-307.535595,0.000389,2]
[423631133,1780265458000,-310.535595,0.000389,2]
[423631136,1780265458000,-310.535595,0.000389,2]
[423631140,1780265458000,-2000.0,0.00038919,116]
[423631137,1780265458000,-410617.13179019,0.000389,2]
[423631138,1780265458000,-2000.0,0.00038903,55]
[423631135,1780265458000,-313.535595,0.000389,2]
[423631144,1780265458000,-5000.0,0.00038964,2]
[423631145,1780265458000,-5000.0,0.00038964,2]
[423631151,1780265458000,-1459.0,0.00039,7]
[423631153,1780265458000,-167.8957425,0.00039,7]
[423631154,1780265458000,-2431.10654618,0.00039001,2]
[423631139,1780265458000,-310.0,0.00038904,55]
[423631171,1780265557000,-10692.19,0.00027397,10]
[423631170,1780265557000,-141.87173324,0.00016603,2]
[423631172,1780265557000,-568.31,0.00028661,30]
[423631177,1780265557000,-215.65,0.00028739,30]
[423631174,1780265557000,-399.4,0.0002867,30]
[423631176,1780265557000,-215.65,0.0002871,7]
[423631175,1780265557000,-215.65,0.00028682,2]
[423631178,1780265557000,-215.65,0.00028768,2]
[423631173,1780265557000,-948.2,0.00028661,30]
[423631193,1780265558000,-399.4,0.00029321,7]
[423631191,1780265558000,-948.2,0.00029316,7]
[423631194,1780265558000,-948.2,0.0002948,2]
[423631192,1780265558000,-568.31,0.00029316,7]
[423631189,1780265558000,-568.31,0.00029152,30]
[423631188,1780265558000,-948.2,0.00029152,30]
[423631187,1780265558000,-399.4,0.00028995,2]
[423631186,1780265558000,-568.31,0.00028988,2]
[423631185,1780265558000,-948.2,0.00028988,2]
[423631183,1780265558000,-215.65,0.00028826,30]
[423631182,1780265558000,-948.2,0.00028824,7]
[423631184,1780265558000,-399.4,0.00028832,7]
[423631179,1780265558000,-215.65,0.00028797,7]
[423631181,1780265558000,-229.63402085,0.00028824,7]
[423631180,1780265558000,-338.67597915,0.00028824,7]
[423631195,1780265558000,-568.31,0.0002948,2]
[423631197,1780265558000,-568.31,0.00029644,30]
[423631190,1780265558000,-399.4,0.00029158,30]
[423631199,1780265558000,-300.0,0.00035487,2]
[423631215,1780265558000,-141.87173324,8.198e-05,2]
[423631214,1780265558000,-67036.40684574,0.0003903,2]
[423631213,1780265558000,-568.31,0.00029808,7]
[423631212,1780265558000,-399.4,0.00029647,30]
[423631211,1780265558000,-948.2,0.00029644,30]
[423631207,1780265558000,-350.0,0.00039022,7]
[423631209,1780265558000,-3696.58941074,0.0003903,2]
[423631208,1780265558000,-44085.2774809,0.0003903,2]
[423631210,1780265558000,-215.65,0.00028855,2]
[423631202,1780265558000,-170.390236,0.00037467,7]
[423631201,1780265558000,-300.0,0.00035487,2]
[423631198,1780265558000,-310.50110747,0.00035487,2]
[423631206,1780265558000,-555.0,0.00039021,10]
[423631203,1780265558000,-151.0,0.00038356,30]
[423631196,1780265558000,-399.4,0.00029484,2]
[423631204,1780265558000,-187.71827,0.00038356,30]
[423631205,1780265558000,-1098.61024478,0.00039019,56]
[423631200,1780265558000,-300.0,0.00035487,2]
[423631216,1780265559000,-141.87173324,8.149e-05,2]
[423631217,1780265560000,-8.12826676,8.149e-05,2]
[423631218,1780265560000,-133.74346648,8.173e-05,2]
[423631220,1780265561000,-25.61519972,8.198e-05,2]
[423631219,1780265561000,-116.25653352,8.173e-05,2]
[423631221,1780265562000,-141.87173324,8.198e-05,2]
[423631224,1780265562000,9010.0,0.0003013,120]
[423631223,1780265562000,529.0,0.0003013,120]
[423631222,1780265562000,-141.87173324,8.198e-05,2]
[423631225,1780265563000,-141.87173324,7.904e-05,2]
[423631226,1780265564000,-8.12826676,7.904e-05,2]
[423631227,1780265564000,-133.74346648,8.198e-05,2]
[423631229,1780265664000,-16.25653352,8.149e-05,2]
[423631228,1780265664000,-16.25653352,8.198e-05,2]
[423631231,1780265665000,573.0,0.0003013,120]
[423631230,1780265665000,559.0,0.0003013,120]
[423631232,1780265666000,-16.25653352,7.667e-05,2]
[423631233,1780265667000,-16.25653352,7.667e-05,2]
[423631234,1780265669000,-16.25653352,7.667e-05,2]
[423631236,1780265669000,-4978.74346648,8.149e-05,2]
[423631235,1780265669000,-101.23039944,7.667e-05,2]
[423631238,1780265669000,-4310.84,8.149e-05,2]
[423631239,1780265669000,-45557.0,8.164e-05,2]
[423631240,1780265669000,-48.76960056,8.198e-05,2]
[423631241,1780265669000,-14847.99653352,8.199e-05,2]
[423631237,1780265669000,-2155.42,8.149e-05,2]
[423631242,1780265757000,-16.25653352,8.199e-05,2]
[423631247,1780265758000,11101.0,0.0003013,120]
[423631246,1780265758000,630.97506625,0.0003013,120]
[423631245,1780265758000,-25000.0,8.199e-05,2]
[423631243,1780265758000,-25000.0,8.199e-05,2]
[423631244,1780265758000,-16.25653352,8.199e-05,2]
[423631249,1780265759000,-16.25653352,7.437e-05,2]
[423631248,1780265759000,8025.0,0.0003013,120]
[423631250,1780265760000,-133.74346648,7.437e-05,2]
[423631251,1780265760000,-9866.26653352,8.199e-05,2]
[423631252,1780265761000,-10000.01,8.199e-05,2]
[423631253,1780265761000,-1200.0,8.198e-05,2]
[423631254,1780265761000,-8800.01,8.199e-05,2]
[423631261,1780265762000,-9850.01,8.199e-05,2]
[423631260,1780265762000,-150.0,7.214e-05,2]